[Event "Titled Tuesday Blitz May 30 Late 2023"]
[White "Chylewski, Patryk"]
[Black "Castillo Pena, Patricia Evarista"]
[WhiteFideId "1186191"]
[BlackFideId "6412106"]
[WhiteElo "2163"]
[BlackElo "1919"]
[Result "1-0"]
[Round "01"]
[TimeControl "180+2"]
[Date "2023.05.31"]
[WhiteClock "0:01:09"]
[BlackClock "0:00:00"]

1. e4 {[%clk 0:02:59]}  c5 {[%clk 0:02:59]} 2. Nf3 {[%clk 0:02:58]}  d6 {[%clk 0:02:53]} 3. c3 {[%clk 0:02:58]}  Nf6 {[%clk 0:02:53]} 4. h3 {[%clk 0:02:58]}  Nc6 {[%clk 0:02:39]} 5. Bd3 {[%clk 0:02:56]}  e5 {[%clk 0:02:09]} 6. O-O {[%clk 0:02:54]}  Be7 {[%clk 0:02:09]} 7. Bc2 {[%clk 0:02:54]}  O-O {[%clk 0:02:09]} 8. d4 {[%clk 0:02:55]}  cxd4 {[%clk 0:02:08]} 9. cxd4 {[%clk 0:02:56]}  exd4 {[%clk 0:02:07]} 10. Nxd4 {[%clk 0:02:56]}  Nxd4 {[%clk 0:02:07]} 11. Qxd4 {[%clk 0:02:57]}  Be6 {[%clk 0:02:06]} 12. Nc3 {[%clk 0:02:57]}  a6 {[%clk 0:02:06]} 13. Bf4 {[%clk 0:02:55]}  Qc7 {[%clk 0:02:01]} 14. Rac1 {[%clk 0:02:53]}  Rfd8 {[%clk 0:01:54]} 15. Rfd1 {[%clk 0:02:49]}  Rac8 {[%clk 0:01:53]} 16. Bb1 {[%clk 0:02:18]}  Qc4 {[%clk 0:01:50]} 17. Qe3 {[%clk 0:02:11]}  Qb4 {[%clk 0:01:40]} 18. Qe2 {[%clk 0:01:49]}  Bc4 {[%clk 0:01:16]} 19. Qd2 {[%clk 0:01:48]}  Qb6 {[%clk 0:01:06]} 20. Be3 {[%clk 0:01:43]}  Qc7 {[%clk 0:00:51]} 21. b3 {[%clk 0:01:25]}  Be6 {[%clk 0:00:32]} 22. Nd5 {[%clk 0:01:24]}  Qd7 {[%clk 0:00:31]} 23. Rxc8 {[%clk 0:01:18]}  Rxc8 {[%clk 0:00:14]} 24. Nb6 {[%clk 0:01:17]}  Qd8 {[%clk 0:00:08]} 25. Nxc8 {[%clk 0:01:15]}  Qxc8 {[%clk 0:00:09]} 26. Rc1 {[%clk 0:01:15]}  Qb8 {[%clk 0:00:00]} 27. Bb6 {[%clk 0:01:09]} 1-0


[Site "https://www.chess.com"]

[Event "Titled Tuesday Blitz May 30 Late 2023"]
[White "Vachier-Lagrave, Maxime"]
[Black "Bernabeu Lopez, Carlos Javier"]
[WhiteFideId "623539"]
[BlackFideId "2235366"]
[WhiteElo "2723"]
[BlackElo "2344"]
[Result "1-0"]
[Round "02"]
[TimeControl "180+2"]
[Date "2023.05.31"]
[WhiteClock "0:01:09"]
[BlackClock "0:01:58"]

1. e4 {[%clk 0:02:58]}  e5 {[%clk 0:03:00]} 2. Nf3 {[%clk 0:02:56]}  Nf6 {[%clk 0:03:00]} 3. d4 {[%clk 0:02:54]}  Nxe4 {[%clk 0:03:01]} 4. Bd3 {[%clk 0:02:52]}  Nc6 {[%clk 0:03:00]} 5. d5 {[%clk 0:02:28]}  Nc5 {[%clk 0:03:00]} 6. O-O {[%clk 0:02:25]}  Ne7 {[%clk 0:02:57]} 7. Nxe5 {[%clk 0:02:22]}  Nxd3 {[%clk 0:02:55]} 8. Qxd3 {[%clk 0:02:16]}  d6 {[%clk 0:02:44]} 9. Qb5+ {[%clk 0:02:15]}  c6 {[%clk 0:02:45]} 10. dxc6 {[%clk 0:02:15]}  bxc6 {[%clk 0:02:45]} 11. Nxc6 {[%clk 0:02:13]}  Qd7 {[%clk 0:02:45]} 12. Nd4 {[%clk 0:02:12]}  g6 {[%clk 0:02:34]} 13. Bg5 {[%clk 0:02:06]}  Bg7 {[%clk 0:02:30]} 14. Re1 {[%clk 0:02:03]}  f6 {[%clk 0:02:23]} 15. Nc6 {[%clk 0:01:59]}  fxg5 {[%clk 0:02:00]} 16. Rxe7+ {[%clk 0:01:56]}  Qxe7 {[%clk 0:02:00]} 17. Nxe7+ {[%clk 0:01:55]}  Kxe7 {[%clk 0:02:01]} 18. Nc3 {[%clk 0:01:55]}  Bxc3 {[%clk 0:02:01]} 19. bxc3 {[%clk 0:01:54]}  Be6 {[%clk 0:02:02]} 20. Qxg5+ {[%clk 0:01:50]}  Kf7 {[%clk 0:02:01]} 21. Qf4+ {[%clk 0:01:50]}  Kg7 {[%clk 0:02:01]} 22. Re1 {[%clk 0:01:50]}  Rae8 {[%clk 0:01:59]} 23. Qxd6 {[%clk 0:01:49]}  Bf7 {[%clk 0:02:00]} 24. Qd4+ {[%clk 0:01:49]}  Kh6 {[%clk 0:02:00]} 25. Re3 {[%clk 0:01:48]}  Rxe3 {[%clk 0:02:00]} 26. Qxe3+ {[%clk 0:01:48]}  Kg7 {[%clk 0:02:00]} 27. Qe5+ {[%clk 0:01:47]}  Kg8 {[%clk 0:01:59]} 28. c4 {[%clk 0:01:45]}  h5 {[%clk 0:02:00]} 29. c5 {[%clk 0:01:45]}  Rh7 {[%clk 0:02:00]} 30. c6 {[%clk 0:01:45]}  Bxa2 {[%clk 0:02:01]} 31. c7 {[%clk 0:01:45]}  Be6 {[%clk 0:01:58]} 32. Qxe6+ {[%clk 0:01:09]} 1-0


[Site "https://www.chess.com"]

[Event "Titled Tuesday Blitz May 30 Late 2023"]
[White "Perez, Maximiliano"]
[Black "Paravyan, David"]
[WhiteFideId "117234"]
[BlackFideId "4194985"]
[WhiteElo "2344"]
[BlackElo "2563"]
[Result "0-1"]
[Round "02"]
[TimeControl "180+2"]
[Date "2023.05.31"]
[WhiteClock "0:01:00"]
[BlackClock "0:01:04"]

1. e4 {[%clk 0:01:40]}  e5 {[%clk 0:03:00]} 2. Nf3 {[%clk 0:01:39]}  Nc6 {[%clk 0:02:57]} 3. Bc4 {[%clk 0:01:39]}  d6 {[%clk 0:02:56]} 4. c3 {[%clk 0:01:35]}  f5 {[%clk 0:02:55]} 5. exf5 {[%clk 0:01:35]}  Bxf5 {[%clk 0:02:54]} 6. d4 {[%clk 0:01:35]}  e4 {[%clk 0:02:48]} 7. Bg5 {[%clk 0:01:31]}  Be7 {[%clk 0:02:40]} 8. Nh4 {[%clk 0:01:31]}  Qd7 {[%clk 0:02:21]} 9. Nxf5 {[%clk 0:01:29]}  Qxf5 {[%clk 0:02:22]} 10. Be3 {[%clk 0:01:24]}  Nf6 {[%clk 0:02:21]} 11. Nd2 {[%clk 0:01:23]}  d5 {[%clk 0:02:21]} 12. Bb5 {[%clk 0:01:23]}  O-O {[%clk 0:02:20]} 13. O-O {[%clk 0:01:23]}  Ng4 {[%clk 0:02:13]} 14. h3 {[%clk 0:01:23]}  Nxe3 {[%clk 0:02:13]} 15. fxe3 {[%clk 0:01:24]}  Qg5 {[%clk 0:02:09]} 16. Qe1 {[%clk 0:01:23]}  Bd6 {[%clk 0:02:02]} 17. Rxf8+ {[%clk 0:01:22]}  Rxf8 {[%clk 0:02:01]} 18. Nf1 {[%clk 0:01:23]}  Ne7 {[%clk 0:02:00]} 19. Be2 {[%clk 0:01:22]}  Nf5 {[%clk 0:01:55]} 20. Bg4 {[%clk 0:01:20]}  Nh4 {[%clk 0:01:40]} 21. Qe2 {[%clk 0:01:17]}  c6 {[%clk 0:01:25]} 22. a4 {[%clk 0:01:16]}  g6 {[%clk 0:01:21]} 23. Be6+ {[%clk 0:01:09]}  Kg7 {[%clk 0:01:20]} 24. Qg4 {[%clk 0:01:10]}  Qf6 {[%clk 0:01:17]} 25. Nh2 {[%clk 0:01:00]}  h5 {[%clk 0:01:04]} 0-1


[Site "https://www.chess.com"]

[Event "Titled Tuesday Blitz May 30 Late 2023"]
[White "Gubajdullin, Alexei"]
[Black "Pranav, V"]
[WhiteFideId "4141202"]
[BlackFideId "25060783"]
[WhiteElo "2279"]
[BlackElo "2515"]
[Result "1/2-1/2"]
[Round "02"]
[TimeControl "180+2"]
[Date "2023.05.31"]
[WhiteClock "0:00:06"]
[BlackClock "0:00:01"]

1. d4 {[%clk 0:02:58]}  Nf6 {[%clk 0:02:59]} 2. Nf3 {[%clk 0:02:58]}  g6 {[%clk 0:02:58]} 3. Bf4 {[%clk 0:02:59]}  Bg7 {[%clk 0:02:58]} 4. e3 {[%clk 0:02:59]}  O-O {[%clk 0:02:58]} 5. Be2 {[%clk 0:02:59]}  d6 {[%clk 0:02:58]} 6. O-O {[%clk 0:02:59]}  Nfd7 {[%clk 0:02:59]} 7. h3 {[%clk 0:02:58]}  e5 {[%clk 0:02:59]} 8. Bh2 {[%clk 0:02:59]}  Nc6 {[%clk 0:02:59]} 9. c4 {[%clk 0:02:49]}  exd4 {[%clk 0:02:56]} 10. exd4 {[%clk 0:02:49]}  Qf6 {[%clk 0:02:57]} 11. Nc3 {[%clk 0:02:49]}  Nxd4 {[%clk 0:02:55]} 12. Nxd4 {[%clk 0:02:49]}  Qxd4 {[%clk 0:02:56]} 13. Qxd4 {[%clk 0:02:41]}  Bxd4 {[%clk 0:02:57]} 14. Nd5 {[%clk 0:02:41]}  Bb6 {[%clk 0:02:48]} 15. a4 {[%clk 0:02:29]}  a5 {[%clk 0:02:37]} 16. Nxb6 {[%clk 0:02:26]}  Nxb6 {[%clk 0:02:35]} 17. c5 {[%clk 0:02:26]}  dxc5 {[%clk 0:02:27]} 18. Bxc7 {[%clk 0:02:26]}  Nd5 {[%clk 0:02:02]} 19. Bd6 {[%clk 0:02:24]}  Re8 {[%clk 0:02:03]} 20. Bf3 {[%clk 0:02:22]}  Be6 {[%clk 0:01:47]} 21. Bxc5 {[%clk 0:02:21]}  Rac8 {[%clk 0:01:48]} 22. Bd4 {[%clk 0:02:16]}  Rc4 {[%clk 0:01:44]} 23. Rfd1 {[%clk 0:02:08]}  Nb4 {[%clk 0:01:28]} 24. Bc3 {[%clk 0:02:01]}  Rc7 {[%clk 0:00:55]} 25. Rd6 {[%clk 0:01:57]}  Bd7 {[%clk 0:00:48]} 26. Bxb4 {[%clk 0:01:25]}  axb4 {[%clk 0:00:47]} 27. Rb6 {[%clk 0:01:25]}  Bc8 {[%clk 0:00:40]} 28. Rxb4 {[%clk 0:01:23]}  Kg7 {[%clk 0:00:41]} 29. a5 {[%clk 0:01:23]}  Rd8 {[%clk 0:00:41]} 30. Rb6 {[%clk 0:01:21]}  Rd2 {[%clk 0:00:40]} 31. b4 {[%clk 0:01:20]}  Rb2 {[%clk 0:00:40]} 32. h4 {[%clk 0:01:08]}  Rcc2 {[%clk 0:00:38]} 33. Rf1 {[%clk 0:01:05]}  Rc7 {[%clk 0:00:33]} 34. g3 {[%clk 0:01:03]}  Bh3 {[%clk 0:00:31]} 35. Bg2 {[%clk 0:00:57]}  Bc8 {[%clk 0:00:28]} 36. Re1 {[%clk 0:00:48]}  Rcc2 {[%clk 0:00:27]} 37. Rf1 {[%clk 0:00:46]}  Rc7 {[%clk 0:00:27]} 38. Be4 {[%clk 0:00:44]}  Re7 {[%clk 0:00:23]} 39. Bf3 {[%clk 0:00:40]}  Rc7 {[%clk 0:00:23]} 40. Kg2 {[%clk 0:00:40]}  h5 {[%clk 0:00:20]} 41. Be4 {[%clk 0:00:39]}  Re7 {[%clk 0:00:19]} 42. Re1 {[%clk 0:00:37]}  Rc7 {[%clk 0:00:16]} 43. Rb1 {[%clk 0:00:31]}  Ra2 {[%clk 0:00:15]} 44. Rb3 {[%clk 0:00:24]}  Re7 {[%clk 0:00:14]} 45. Bf3 {[%clk 0:00:23]}  Rc7 {[%clk 0:00:14]} 46. Rb1 {[%clk 0:00:23]}  Rcc2 {[%clk 0:00:14]} 47. Rf1 {[%clk 0:00:22]}  Rc7 {[%clk 0:00:14]} 48. Bd5 {[%clk 0:00:20]}  Rd2 {[%clk 0:00:14]} 49. Bf3 {[%clk 0:00:19]}  Rb2 {[%clk 0:00:13]} 50. b5 {[%clk 0:00:19]}  Ra2 {[%clk 0:00:12]} 51. Re1 {[%clk 0:00:11]}  Rxa5 {[%clk 0:00:10]} 52. Re2 {[%clk 0:00:11]}  Ra3 {[%clk 0:00:10]} 53. Rb2 {[%clk 0:00:11]}  Rac3 {[%clk 0:00:08]} 54. Rd6 {[%clk 0:00:10]}  Rc1 {[%clk 0:00:07]} 55. b6 {[%clk 0:00:10]}  Re7 {[%clk 0:00:07]} 56. Rdd2 {[%clk 0:00:09]}  Bf5 {[%clk 0:00:06]} 57. Re2 {[%clk 0:00:08]}  Rd7 {[%clk 0:00:07]} 58. Be4 {[%clk 0:00:08]}  Bg4 {[%clk 0:00:05]} 59. Bf3 {[%clk 0:00:08]}  Be6 {[%clk 0:00:05]} 60. Red2 {[%clk 0:00:08]}  Rxd2 {[%clk 0:00:03]} 61. Rxd2 {[%clk 0:00:08]}  Rb1 {[%clk 0:00:04]} 62. Rd6 {[%clk 0:00:08]}  Bc8 {[%clk 0:00:03]} 63. Rd8 {[%clk 0:00:07]}  Be6 {[%clk 0:00:03]} 64. Rd6 {[%clk 0:00:07]}  Bc8 {[%clk 0:00:04]} 65. Rd8 {[%clk 0:00:06]}  Bf5 {[%clk 0:00:04]} 66. Rd6 {[%clk 0:00:06]}  Bc8 {[%clk 0:00:01]} 1/2-1/2


[Site "https://www.chess.com"]

[Event "Titled Tuesday Blitz May 30 Late 2023"]
[White "Bok, Benjamin"]
[Black "Adewumi, Tanitoluwa"]
[WhiteFideId "1017063"]
[BlackFideId "30966396"]
[WhiteElo "2657"]
[BlackElo "2600"]
[Result "1-0"]
[Round "02"]
[TimeControl "180+2"]
[Date "2023.05.31"]
[WhiteClock "0:01:45"]
[BlackClock "0:01:25"]

1. d4 {[%clk 0:03:00]}  Nf6 {[%clk 0:02:59]} 2. c4 {[%clk 0:03:01]}  e6 {[%clk 0:02:59]} 3. Nc3 {[%clk 0:03:01]}  Bb4 {[%clk 0:02:59]} 4. Qc2 {[%clk 0:03:01]}  O-O {[%clk 0:02:59]} 5. a3 {[%clk 0:03:01]}  Bxc3+ {[%clk 0:02:59]} 6. Qxc3 {[%clk 0:03:02]}  b6 {[%clk 0:02:59]} 7. Bg5 {[%clk 0:03:02]}  Bb7 {[%clk 0:02:57]} 8. e3 {[%clk 0:03:03]}  h6 {[%clk 0:02:55]} 9. Bh4 {[%clk 0:03:02]}  d6 {[%clk 0:02:55]} 10. f3 {[%clk 0:03:02]}  c5 {[%clk 0:02:56]} 11. Bd3 {[%clk 0:03:00]}  Nc6 {[%clk 0:02:41]} 12. dxc5 {[%clk 0:02:38]}  bxc5 {[%clk 0:02:39]} 13. O-O-O {[%clk 0:02:31]}  Rc8 {[%clk 0:02:28]} 14. Nh3 {[%clk 0:02:15]}  Ne5 {[%clk 0:02:16]} 15. Nf2 {[%clk 0:02:06]}  Nxd3+ {[%clk 0:01:57]} 16. Rxd3 {[%clk 0:01:58]}  Qe7 {[%clk 0:01:50]} 17. Ng4 {[%clk 0:01:47]}  e5 {[%clk 0:01:29]} 18. Bxf6 {[%clk 0:01:47]}  gxf6 {[%clk 0:01:25]} 19. Nxh6+ {[%clk 0:01:47]}  Kh7 {[%clk 0:01:26]} 20. Nf5 {[%clk 0:01:45]}  Qe6 {[%clk 0:01:25]} 21. e4 {[%clk 0:01:45]} 1-0


[Site "https://www.chess.com"]

[Event "Titled Tuesday Blitz May 30 Late 2023"]
[White "brm72"]
[Black "Sjugirov, Sanan"]
[BlackFideId "4189302"]
[WhiteElo "2599"]
[BlackElo "2569"]
[Result "0-1"]
[Round "02"]
[TimeControl "180+2"]
[Date "2023.05.31"]
[WhiteClock "0:00:08"]
[BlackClock "0:00:48"]

1. e4 {[%clk 0:03:00]}  c5 {[%clk 0:02:59]} 2. Nf3 {[%clk 0:03:00]}  d6 {[%clk 0:03:00]} 3. d4 {[%clk 0:03:01]}  cxd4 {[%clk 0:03:00]} 4. Nxd4 {[%clk 0:03:02]}  Nf6 {[%clk 0:03:01]} 5. Nc3 {[%clk 0:03:02]}  a6 {[%clk 0:03:01]} 6. Be2 {[%clk 0:03:00]}  e5 {[%clk 0:03:01]} 7. Nb3 {[%clk 0:02:59]}  Be7 {[%clk 0:03:01]} 8. O-O {[%clk 0:03:00]}  O-O {[%clk 0:03:01]} 9. Re1 {[%clk 0:03:00]}  Be6 {[%clk 0:02:59]} 10. Bf3 {[%clk 0:03:00]}  Nbd7 {[%clk 0:02:54]} 11. a4 {[%clk 0:03:00]}  Qc7 {[%clk 0:02:47]} 12. a5 {[%clk 0:03:00]}  Rac8 {[%clk 0:02:47]} 13. Nd2 {[%clk 0:02:59]}  Nb8 {[%clk 0:02:28]} 14. Nf1 {[%clk 0:02:32]}  Nc6 {[%clk 0:02:28]} 15. Bd2 {[%clk 0:01:54]}  Nxa5 {[%clk 0:02:09]} 16. Nd5 {[%clk 0:01:31]}  Bxd5 {[%clk 0:02:09]} 17. Bxa5 {[%clk 0:01:29]}  b6 {[%clk 0:02:09]} 18. exd5 {[%clk 0:01:26]}  bxa5 {[%clk 0:02:09]} 19. c3 {[%clk 0:01:25]}  Qb6 {[%clk 0:02:04]} 20. Ra2 {[%clk 0:01:16]}  g6 {[%clk 0:01:52]} 21. Qa4 {[%clk 0:01:15]}  Bd8 {[%clk 0:01:47]} 22. Nd2 {[%clk 0:01:10]}  Qb5 {[%clk 0:01:23]} 23. g3 {[%clk 0:00:49]}  Bb6 {[%clk 0:01:14]} 24. Kg2 {[%clk 0:00:47]}  Rfe8 {[%clk 0:01:07]} 25. h4 {[%clk 0:00:46]}  h5 {[%clk 0:00:56]} 26. c4 {[%clk 0:00:21]}  Qc5 {[%clk 0:00:52]} 27. Re2 {[%clk 0:00:20]}  e4 {[%clk 0:00:51]} 28. Nxe4 {[%clk 0:00:16]}  Nxe4 {[%clk 0:00:50]} 29. Bxe4 {[%clk 0:00:11]}  Rxe4 {[%clk 0:00:50]} 30. Rxe4 {[%clk 0:00:08]}  Qxf2+ {[%clk 0:00:49]} 31. Kh3 {[%clk 0:00:08]}  Qf1+ {[%clk 0:00:48]} 32. Kh2 {[%clk 0:00:08]}  Bg1+ {[%clk 0:00:48]} 0-1


[Site "https://www.chess.com"]

[Event "Titled Tuesday Blitz May 30 Late 2023"]
[White "Adla, Diego"]
[Black "Svane, Rasmus"]
[WhiteFideId "100072"]
[BlackFideId "4657101"]
[WhiteElo "2377"]
[BlackElo "2601"]
[Result "0-1"]
[Round "02"]
[TimeControl "180+2"]
[Date "2023.05.31"]
[WhiteClock "0:00:29"]
[BlackClock "0:00:11"]

1. c4 {[%clk 0:03:00]}  Nf6 {[%clk 0:02:59]} 2. Nc3 {[%clk 0:03:00]}  e5 {[%clk 0:02:56]} 3. Nf3 {[%clk 0:02:58]}  Nc6 {[%clk 0:02:56]} 4. e4 {[%clk 0:02:57]}  Bb4 {[%clk 0:02:54]} 5. d3 {[%clk 0:02:57]}  d6 {[%clk 0:02:55]} 6. Be2 {[%clk 0:02:56]}  a5 {[%clk 0:02:52]} 7. O-O {[%clk 0:02:54]}  Bc5 {[%clk 0:02:53]} 8. Nd2 {[%clk 0:02:53]}  Nd4 {[%clk 0:02:47]} 9. Nb3 {[%clk 0:02:51]}  Nxb3 {[%clk 0:02:46]} 10. axb3 {[%clk 0:02:50]}  O-O {[%clk 0:02:38]} 11. Kh1 {[%clk 0:02:50]}  h6 {[%clk 0:02:26]} 12. f4 {[%clk 0:02:50]}  c6 {[%clk 0:02:24]} 13. f5 {[%clk 0:02:48]}  d5 {[%clk 0:02:17]} 14. Qe1 {[%clk 0:02:48]}  dxe4 {[%clk 0:02:15]} 15. dxe4 {[%clk 0:02:45]}  Bd4 {[%clk 0:02:15]} 16. Bf3 {[%clk 0:02:43]}  Nh7 {[%clk 0:01:56]} 17. Ne2 {[%clk 0:02:39]}  Bc5 {[%clk 0:01:52]} 18. Nc3 {[%clk 0:02:29]}  Bd7 {[%clk 0:01:49]} 19. Be3 {[%clk 0:02:28]}  Qe7 {[%clk 0:01:43]} 20. Na4 {[%clk 0:02:22]}  Bxe3 {[%clk 0:01:41]} 21. Qxe3 {[%clk 0:02:23]}  Rfd8 {[%clk 0:01:27]} 22. Nb6 {[%clk 0:02:23]}  Ra6 {[%clk 0:01:27]} 23. c5 {[%clk 0:02:22]}  Nf6 {[%clk 0:01:22]} 24. Be2 {[%clk 0:02:21]}  Ra7 {[%clk 0:01:22]} 25. Bc4 {[%clk 0:02:20]}  Be8 {[%clk 0:01:21]} 26. b4 {[%clk 0:02:19]}  Rd4 {[%clk 0:01:19]} 27. b3 {[%clk 0:01:49]}  Rxe4 {[%clk 0:01:13]} 28. Qc1 {[%clk 0:01:46]}  Qd8 {[%clk 0:00:57]} 29. bxa5 {[%clk 0:01:43]}  Qd4 {[%clk 0:00:39]} 30. b4 {[%clk 0:01:39]}  Kh7 {[%clk 0:00:39]} 31. Qd1 {[%clk 0:01:35]}  Qc3 {[%clk 0:00:34]} 32. Qc1 {[%clk 0:01:06]}  Qxb4 {[%clk 0:00:30]} 33. Bd3 {[%clk 0:01:06]}  Rd4 {[%clk 0:00:27]} 34. Ra4 {[%clk 0:01:04]}  Qxa4 {[%clk 0:00:18]} 35. Nxa4 {[%clk 0:01:05]}  Rxa4 {[%clk 0:00:19]} 36. Qc3 {[%clk 0:01:01]}  e4 {[%clk 0:00:18]} 37. Bc2 {[%clk 0:00:48]}  R4xa5 {[%clk 0:00:18]} 38. Qd4 {[%clk 0:00:48]}  Ra2 {[%clk 0:00:17]} 39. Bb1 {[%clk 0:00:41]}  Re2 {[%clk 0:00:12]} 40. Kg1 {[%clk 0:00:31]}  Ra3 {[%clk 0:00:11]} 41. h3 {[%clk 0:00:29]}  Rb3 {[%clk 0:00:11]} 0-1


[Site "https://www.chess.com"]

[Event "Titled Tuesday Blitz May 30 Late 2023"]
[White "Rasulov, Vugar"]
[Black "Grinev, Valeriy"]
[WhiteFideId "13402390"]
[BlackFideId "14117517"]
[WhiteElo "2509"]
[BlackElo "2366"]
[Result "1-0"]
[Round "02"]
[TimeControl "180+2"]
[Date "2023.05.31"]
[WhiteClock "0:00:33"]
[BlackClock "0:00:19"]

1. e4 {[%clk 0:03:00]}  c5 {[%clk 0:02:59]} 2. Nf3 {[%clk 0:03:01]}  e6 {[%clk 0:03:00]} 3. d4 {[%clk 0:03:01]}  cxd4 {[%clk 0:03:01]} 4. Nxd4 {[%clk 0:03:01]}  a6 {[%clk 0:03:01]} 5. Nc3 {[%clk 0:03:00]}  Qc7 {[%clk 0:03:01]} 6. f4 {[%clk 0:02:59]}  b5 {[%clk 0:03:00]} 7. Be2 {[%clk 0:02:54]}  Bb7 {[%clk 0:02:59]} 8. Bf3 {[%clk 0:02:55]}  Nf6 {[%clk 0:02:53]} 9. e5 {[%clk 0:02:52]}  b4 {[%clk 0:02:53]} 10. Ncb5 {[%clk 0:02:42]}  axb5 {[%clk 0:02:53]} 11. exf6 {[%clk 0:02:42]}  gxf6 {[%clk 0:02:40]} 12. Be3 {[%clk 0:02:26]}  Bxf3 {[%clk 0:01:47]} 13. Qxf3 {[%clk 0:02:27]}  Nc6 {[%clk 0:01:48]} 14. O-O {[%clk 0:02:13]}  Rb8 {[%clk 0:01:36]} 15. Rad1 {[%clk 0:01:53]}  Bg7 {[%clk 0:01:35]} 16. Nb3 {[%clk 0:01:45]}  d6 {[%clk 0:01:25]} 17. Rd3 {[%clk 0:01:35]}  O-O {[%clk 0:01:25]} 18. Bd2 {[%clk 0:01:34]}  f5 {[%clk 0:01:03]} 19. Qh5 {[%clk 0:01:29]}  Qe7 {[%clk 0:01:01]} 20. Rg3 {[%clk 0:01:25]}  Qf6 {[%clk 0:00:58]} 21. c3 {[%clk 0:01:12]}  Kh8 {[%clk 0:00:44]} 22. cxb4 {[%clk 0:01:08]}  Qh6 {[%clk 0:00:35]} 23. Qxh6 {[%clk 0:01:05]}  Bxh6 {[%clk 0:00:35]} 24. Bc3+ {[%clk 0:01:06]}  f6 {[%clk 0:00:35]} 25. Rd3 {[%clk 0:01:01]}  d5 {[%clk 0:00:35]} 26. Nc5 {[%clk 0:00:57]}  d4 {[%clk 0:00:28]} 27. Bxd4 {[%clk 0:00:50]}  e5 {[%clk 0:00:24]} 28. fxe5 {[%clk 0:00:48]}  fxe5 {[%clk 0:00:25]} 29. Bc3 {[%clk 0:00:48]}  Bg7 {[%clk 0:00:22]} 30. Nd7 {[%clk 0:00:43]}  Rbd8 {[%clk 0:00:22]} 31. Rd6 {[%clk 0:00:41]}  Nd4 {[%clk 0:00:18]} 32. Rd5 {[%clk 0:00:37]}  Ne2+ {[%clk 0:00:17]} 33. Kf2 {[%clk 0:00:35]}  Nxc3 {[%clk 0:00:18]} 34. bxc3 {[%clk 0:00:35]}  e4 {[%clk 0:00:19]} 35. Rfd1 {[%clk 0:00:32]}  Rf7 {[%clk 0:00:19]} 36. Ne5 {[%clk 0:00:30]}  Rxd5 {[%clk 0:00:19]} 37. Nxf7+ {[%clk 0:00:30]}  Kg8 {[%clk 0:00:19]} 38. Rxd5 {[%clk 0:00:31]}  Kxf7 {[%clk 0:00:19]} 39. Rxf5+ {[%clk 0:00:31]}  Ke6 {[%clk 0:00:19]} 40. Rxb5 {[%clk 0:00:32]}  Bxc3 {[%clk 0:00:20]} 41. Ke3 {[%clk 0:00:33]}  Be1 {[%clk 0:00:19]} 42. Kxe4 {[%clk 0:00:33]} 1-0


[Site "https://www.chess.com"]

[Event "Titled Tuesday Blitz May 30 Late 2023"]
[White "Hakobyan, Aram"]
[Black "Pinheiro, Iung Alicio de O."]
[WhiteFideId "13306677"]
[BlackFideId "2104350"]
[WhiteElo "2584"]
[BlackElo "2283"]
[Result "1-0"]
[Round "02"]
[TimeControl "180+2"]
[Date "2023.05.31"]
[WhiteClock "0:00:14"]
[BlackClock "0:00:02"]

1. d4 {[%clk 0:03:00]}  Nf6 {[%clk 0:02:58]} 2. c4 {[%clk 0:03:01]}  Nc6 {[%clk 0:02:58]} 3. Nf3 {[%clk 0:03:00]}  e6 {[%clk 0:02:57]} 4. a3 {[%clk 0:03:01]}  d6 {[%clk 0:02:57]} 5. Nc3 {[%clk 0:03:01]}  g6 {[%clk 0:02:58]} 6. e4 {[%clk 0:03:01]}  Bg7 {[%clk 0:02:58]} 7. Be2 {[%clk 0:03:01]}  O-O {[%clk 0:02:56]} 8. Bg5 {[%clk 0:02:51]}  h6 {[%clk 0:02:53]} 9. Be3 {[%clk 0:02:51]}  Ng4 {[%clk 0:02:39]} 10. Bd2 {[%clk 0:02:44]}  e5 {[%clk 0:02:23]} 11. d5 {[%clk 0:02:44]}  Nd4 {[%clk 0:02:17]} 12. Nxd4 {[%clk 0:02:40]}  exd4 {[%clk 0:02:18]} 13. Bxg4 {[%clk 0:02:39]}  dxc3 {[%clk 0:02:18]} 14. Bxc3 {[%clk 0:02:39]}  Bxc3+ {[%clk 0:02:12]} 15. bxc3 {[%clk 0:02:40]}  Qh4 {[%clk 0:02:07]} 16. Bf3 {[%clk 0:02:26]}  Re8 {[%clk 0:01:54]} 17. O-O {[%clk 0:02:25]}  b6 {[%clk 0:01:53]} 18. Qd4 {[%clk 0:02:17]}  Bd7 {[%clk 0:01:44]} 19. Rfe1 {[%clk 0:02:13]}  Qf4 {[%clk 0:01:38]} 20. Re3 {[%clk 0:02:06]}  Re5 {[%clk 0:01:34]} 21. Rae1 {[%clk 0:02:04]}  Rae8 {[%clk 0:01:34]} 22. g3 {[%clk 0:02:05]}  Qf6 {[%clk 0:01:29]} 23. Bg2 {[%clk 0:02:05]}  g5 {[%clk 0:01:24]} 24. Rf1 {[%clk 0:01:53]}  g4 {[%clk 0:01:19]} 25. f4 {[%clk 0:01:49]}  gxf3 {[%clk 0:01:19]} 26. Rexf3 {[%clk 0:01:49]}  Qg7 {[%clk 0:01:19]} 27. Rf4 {[%clk 0:01:43]}  R8e7 {[%clk 0:01:15]} 28. Bf3 {[%clk 0:01:37]}  Rg5 {[%clk 0:01:04]} 29. Rf2 {[%clk 0:01:23]}  Qe5 {[%clk 0:01:01]} 30. Bg2 {[%clk 0:01:20]}  Kg7 {[%clk 0:00:55]} 31. R2f3 {[%clk 0:01:11]}  Bg4 {[%clk 0:00:42]} 32. Re3 {[%clk 0:01:09]}  Rg6 {[%clk 0:00:36]} 33. Re1 {[%clk 0:01:08]}  Bd7 {[%clk 0:00:35]} 34. Ref1 {[%clk 0:01:06]}  Rg5 {[%clk 0:00:35]} 35. Kh1 {[%clk 0:01:00]}  a5 {[%clk 0:00:33]} 36. Rh4 {[%clk 0:00:57]}  Bg4 {[%clk 0:00:28]} 37. Rf4 {[%clk 0:00:54]}  h5 {[%clk 0:00:26]} 38. Rf2 {[%clk 0:00:51]}  Kg6 {[%clk 0:00:25]} 39. Bf3 {[%clk 0:00:44]}  Bd7 {[%clk 0:00:24]} 40. Rf4 {[%clk 0:00:40]}  Kg7 {[%clk 0:00:23]} 41. Kg2 {[%clk 0:00:35]}  Kg6 {[%clk 0:00:21]} 42. h4 {[%clk 0:00:32]}  Qxf4 {[%clk 0:00:20]} 43. Bxh5+ {[%clk 0:00:31]}  Kxh5 {[%clk 0:00:15]} 44. Rxf4 {[%clk 0:00:32]}  Rge5 {[%clk 0:00:13]} 45. Qf2 {[%clk 0:00:29]}  Kg6 {[%clk 0:00:07]} 46. Qf3 {[%clk 0:00:21]}  Kg7 {[%clk 0:00:06]} 47. h5 {[%clk 0:00:19]}  f5 {[%clk 0:00:05]} 48. exf5 {[%clk 0:00:17]}  Re2+ {[%clk 0:00:04]} 49. Kh3 {[%clk 0:00:17]}  Kh6 {[%clk 0:00:03]} 50. Rg4 {[%clk 0:00:15]}  R7e3 {[%clk 0:00:02]} 51. Qf4+ {[%clk 0:00:15]}  Kh7 {[%clk 0:00:02]} 52. Qg5 {[%clk 0:00:14]} 1-0


[Site "https://www.chess.com"]